[Event "Titled Tuesday Blitz March 07 Late 2023"]
[White "Remizov, Yaroslav"]
[Black "Krishnan, Varun"]
[WhiteFideId "34134015"]
[BlackFideId "5054508"]
[WhiteElo "2408"]
[BlackElo "2544"]
[Result "1-0"]
[Round "02"]
[TimeControl "180+2"]
[Date "2023.03.07"]
[WhiteClock "0:00:05"]
[BlackClock "0:00:04"]

1. e4 {[%clk 0:03:00]}  c5 {[%clk 0:02:59]} 2. Nf3 {[%clk 0:03:00]}  d6 {[%clk 0:03:00]} 3. d4 {[%clk 0:03:00]}  cxd4 {[%clk 0:03:01]} 4. Nxd4 {[%clk 0:02:59]}  Nf6 {[%clk 0:03:01]} 5. Nc3 {[%clk 0:02:58]}  Nc6 {[%clk 0:03:02]} 6. Be2 {[%clk 0:02:56]}  e5 {[%clk 0:02:59]} 7. Nb3 {[%clk 0:02:56]}  Be7 {[%clk 0:02:57]} 8. O-O {[%clk 0:02:43]}  O-O {[%clk 0:02:57]} 9. Be3 {[%clk 0:02:41]}  a5 {[%clk 0:02:57]} 10. a4 {[%clk 0:02:41]}  Nb4 {[%clk 0:02:55]} 11. Nd5 {[%clk 0:02:12]}  Nfxd5 {[%clk 0:02:40]} 12. exd5 {[%clk 0:02:13]}  Bf5 {[%clk 0:02:39]} 13. Rc1 {[%clk 0:02:02]}  Na2 {[%clk 0:02:37]} 14. Ra1 {[%clk 0:01:57]}  Nb4 {[%clk 0:02:37]} 15. Rc1 {[%clk 0:01:55]}  Na2 {[%clk 0:02:22]} 16. Rb1 {[%clk 0:01:47]}  Rc8 {[%clk 0:02:09]} 17. c3 {[%clk 0:01:32]}  Rxc3 {[%clk 0:01:18]} 18. bxc3 {[%clk 0:00:53]}  Nxc3 {[%clk 0:01:18]} 19. Qd2 {[%clk 0:00:39]}  Nxb1 {[%clk 0:01:18]} 20. Qb2 {[%clk 0:00:39]}  Bg5 {[%clk 0:01:14]} 21. Rxb1 {[%clk 0:00:22]}  Bxb1 {[%clk 0:01:06]} 22. Qxb1 {[%clk 0:00:23]}  Bxe3 {[%clk 0:01:06]} 23. fxe3 {[%clk 0:00:24]}  Qb6 {[%clk 0:01:03]} 24. Kf2 {[%clk 0:00:17]}  Qb4 {[%clk 0:00:43]} 25. Bb5 {[%clk 0:00:07]}  f5 {[%clk 0:00:37]} 26. Qc2 {[%clk 0:00:07]}  f4 {[%clk 0:00:18]} 27. e4 {[%clk 0:00:07]}  b6 {[%clk 0:00:12]} 28. Ke2 {[%clk 0:00:05]}  h6 {[%clk 0:00:08]} 29. Qc4 {[%clk 0:00:05]}  Qxc4+ {[%clk 0:00:07]} 30. Bxc4 {[%clk 0:00:06]}  g5 {[%clk 0:00:07]} 31. Bb5 {[%clk 0:00:06]}  g4 {[%clk 0:00:07]} 32. Nd2 {[%clk 0:00:06]}  h5 {[%clk 0:00:07]} 33. Nc4 {[%clk 0:00:06]}  h4 {[%clk 0:00:06]} 34. Nxd6 {[%clk 0:00:05]}  f3+ {[%clk 0:00:04]} 35. gxf3 {[%clk 0:00:05]}  Rxf3 {[%clk 0:00:04]} 36. Nf5 {[%clk 0:00:04]}  h3 {[%clk 0:00:04]} 37. d6 {[%clk 0:00:05]} 1-0


[Site "https://www.chess.com"]

[Event "Titled Tuesday Blitz March 07 Late 2023"]
[White "Baskakov, Egor"]
[Black "Mendez Fortes, Eduardo Jesus"]
[WhiteFideId "24197866"]
[BlackFideId "3502376"]
[WhiteElo "2212"]
[BlackElo "2307"]
[Result "1-0"]
[Round "02"]
[TimeControl "180+2"]
[Date "2023.03.07"]
[WhiteClock "0:00:48"]
[BlackClock "0:00:13"]

1. e4 {[%clk 0:03:00]}  e5 {[%clk 0:02:58]} 2. Nc3 {[%clk 0:03:00]}  Nf6 {[%clk 0:02:58]} 3. g3 {[%clk 0:03:00]}  Nc6 {[%clk 0:02:55]} 4. Bg2 {[%clk 0:03:01]}  Bc5 {[%clk 0:02:55]} 5. h3 {[%clk 0:03:01]}  d6 {[%clk 0:02:56]} 6. Nge2 {[%clk 0:03:01]}  Bb6 {[%clk 0:02:54]} 7. O-O {[%clk 0:03:02]}  Be6 {[%clk 0:02:51]} 8. Nd5 {[%clk 0:03:01]}  Bxd5 {[%clk 0:02:50]} 9. exd5 {[%clk 0:03:02]}  Ne7 {[%clk 0:02:50]} 10. c4 {[%clk 0:03:02]}  Qd7 {[%clk 0:02:49]} 11. d3 {[%clk 0:03:01]}  c6 {[%clk 0:02:46]} 12. dxc6 {[%clk 0:03:01]}  bxc6 {[%clk 0:02:47]} 13. d4 {[%clk 0:03:00]}  e4 {[%clk 0:02:47]} 14. Bg5 {[%clk 0:02:54]}  d5 {[%clk 0:02:46]} 15. Bxf6 {[%clk 0:02:53]}  gxf6 {[%clk 0:02:46]} 16. cxd5 {[%clk 0:02:54]}  cxd5 {[%clk 0:02:47]} 17. Nf4 {[%clk 0:02:52]}  Bc7 {[%clk 0:02:46]} 18. Nh5 {[%clk 0:02:51]}  Qe6 {[%clk 0:02:34]} 19. Rc1 {[%clk 0:02:50]}  Bd6 {[%clk 0:02:34]} 20. Qa4+ {[%clk 0:02:48]}  Kf8 {[%clk 0:02:34]} 21. f3 {[%clk 0:02:40]}  Rg8 {[%clk 0:02:15]} 22. fxe4 {[%clk 0:02:23]}  dxe4 {[%clk 0:02:02]} 23. Rxf6 {[%clk 0:01:59]}  Qd5 {[%clk 0:02:00]} 24. g4 {[%clk 0:01:59]}  Rg6 {[%clk 0:01:37]} 25. Re1 {[%clk 0:01:51]}  Qg5 {[%clk 0:01:24]} 26. Rff1 {[%clk 0:01:42]}  Rb8 {[%clk 0:01:11]} 27. Qc4 {[%clk 0:01:31]}  f5 {[%clk 0:00:55]} 28. Rxe4 {[%clk 0:01:22]}  Rxb2 {[%clk 0:00:51]} 29. Re2 {[%clk 0:01:14]}  Rxe2 {[%clk 0:00:36]} 30. Qxe2 {[%clk 0:01:15]}  f4 {[%clk 0:00:36]} 31. Qe4 {[%clk 0:00:58]}  Rf6 {[%clk 0:00:19]} 32. Nxf6 {[%clk 0:00:58]}  Qxf6 {[%clk 0:00:19]} 33. Qxh7 {[%clk 0:00:57]}  Qxd4+ {[%clk 0:00:18]} 34. Kh1 {[%clk 0:00:58]}  Qe5 {[%clk 0:00:17]} 35. Qe4 {[%clk 0:00:57]}  Qg5 {[%clk 0:00:16]} 36. Qa8+ {[%clk 0:00:56]}  Kg7 {[%clk 0:00:16]} 37. Qxa7 {[%clk 0:00:54]}  Qe5 {[%clk 0:00:16]} 38. Bf3 {[%clk 0:00:50]}  Qc3 {[%clk 0:00:13]} 39. Qf2 {[%clk 0:00:48]}  Bc5 {[%clk 0:00:13]} 40. Qe2 {[%clk 0:00:48]}  Be3 {[%clk 0:00:13]} 41. Rb1 {[%clk 0:00:47]}  Ng6 {[%clk 0:00:13]} 42. Qb2 {[%clk 0:00:47]}  Qxb2 {[%clk 0:00:11]} 43. Rxb2 {[%clk 0:00:48]}  Nh4 {[%clk 0:00:12]} 44. Be4 {[%clk 0:00:47]}  f3 {[%clk 0:00:12]} 45. Bxf3 {[%clk 0:00:47]}  Nxf3 {[%clk 0:00:13]} 46. Rb3 {[%clk 0:00:48]} 1-0


[Site "https://www.chess.com"]

[Event "Titled Tuesday Blitz March 07 Late 2023"]
[White "Poltorak, Sebastian"]
[Black "Holt, Conrad"]
[WhiteFideId "1199498"]
[BlackFideId "2034387"]
[WhiteElo "2195"]
[BlackElo "2592"]
[Result "0-1"]
[Round "02"]
[TimeControl "180+2"]
[Date "2023.03.07"]
[WhiteClock "0:01:22"]
[BlackClock "0:01:24"]

1. e4 {[%clk 0:03:00]}  e6 {[%clk 0:02:58]} 2. Nc3 {[%clk 0:02:59]}  d5 {[%clk 0:02:58]} 3. exd5 {[%clk 0:03:00]}  exd5 {[%clk 0:02:58]} 4. d4 {[%clk 0:03:00]}  Nf6 {[%clk 0:02:55]} 5. Bd3 {[%clk 0:03:00]}  Nc6 {[%clk 0:02:52]} 6. Nge2 {[%clk 0:03:00]}  Bd6 {[%clk 0:02:48]} 7. Bg5 {[%clk 0:03:00]}  Be6 {[%clk 0:02:43]} 8. Qd2 {[%clk 0:03:00]}  h6 {[%clk 0:02:43]} 9. Bh4 {[%clk 0:02:58]}  a6 {[%clk 0:02:17]} 10. Nf4 {[%clk 0:02:40]}  Bxf4 {[%clk 0:02:15]} 11. Qxf4 {[%clk 0:02:39]}  g5 {[%clk 0:02:16]} 12. Bxg5 {[%clk 0:02:25]}  hxg5 {[%clk 0:02:15]} 13. Qxg5 {[%clk 0:02:26]}  Rg8 {[%clk 0:02:13]} 14. Qh4 {[%clk 0:02:23]}  Rxg2 {[%clk 0:02:10]} 15. O-O-O {[%clk 0:02:23]}  Rg4 {[%clk 0:02:08]} 16. Qh6 {[%clk 0:02:17]}  Qe7 {[%clk 0:02:04]} 17. Na4 {[%clk 0:02:10]}  Nxd4 {[%clk 0:01:59]} 18. Rhe1 {[%clk 0:01:57]}  O-O-O {[%clk 0:01:55]} 19. Nc5 {[%clk 0:01:52]}  Qxc5 {[%clk 0:01:53]} 20. Qxf6 {[%clk 0:01:52]}  Rgg8 {[%clk 0:01:40]} 21. Bh7 {[%clk 0:01:49]}  Rh8 {[%clk 0:01:38]} 22. Bd3 {[%clk 0:01:41]}  Rh3 {[%clk 0:01:34]} 23. c3 {[%clk 0:01:39]}  Nc6 {[%clk 0:01:26]} 24. Rxe6 {[%clk 0:01:38]}  Rxd3 {[%clk 0:01:26]} 25. Rxd3 {[%clk 0:01:29]}  fxe6 {[%clk 0:01:26]} 26. Qxe6+ {[%clk 0:01:29]}  Kb8 {[%clk 0:01:26]} 27. Qf6 {[%clk 0:01:22]}  Qc4 {[%clk 0:01:24]} 0-1


[Site "https://www.chess.com"]

[Event "Titled Tuesday Blitz March 07 Late 2023"]
[White "Melkumyan, Hrant"]
[Black "Do Nascimento,Christian Almeida"]
[WhiteFideId "13302485"]
[BlackFideId "2143801"]
[WhiteElo "2604"]
[BlackElo "2125"]
[Result "1-0"]
[Round "02"]
[TimeControl "180+2"]
[Date "2023.03.07"]
[WhiteClock "0:01:46"]
[BlackClock "0:01:46"]

1. d4 {[%clk 0:02:43]}  d5 {[%clk 0:02:58]} 2. c4 {[%clk 0:02:42]}  e6 {[%clk 0:02:58]} 3. Nc3 {[%clk 0:02:42]}  Nf6 {[%clk 0:02:58]} 4. Bg5 {[%clk 0:02:40]}  a6 {[%clk 0:02:58]} 5. e3 {[%clk 0:02:41]}  dxc4 {[%clk 0:02:58]} 6. Bxc4 {[%clk 0:02:39]}  b5 {[%clk 0:02:58]} 7. Be2 {[%clk 0:02:39]}  Bb7 {[%clk 0:02:59]} 8. Bf3 {[%clk 0:02:34]}  Qc8 {[%clk 0:02:46]} 9. Bxf6 {[%clk 0:02:28]}  gxf6 {[%clk 0:02:46]} 10. Rc1 {[%clk 0:02:29]}  Nd7 {[%clk 0:02:45]} 11. Nh3 {[%clk 0:02:21]}  c5 {[%clk 0:02:41]} 12. dxc5 {[%clk 0:02:17]}  Bxc5 {[%clk 0:02:38]} 13. O-O {[%clk 0:02:15]}  O-O {[%clk 0:02:19]} 14. b4 {[%clk 0:02:01]}  Be7 {[%clk 0:01:54]} 15. Nd5 {[%clk 0:01:51]}  Qd8 {[%clk 0:01:45]} 16. Nxe7+ {[%clk 0:01:46]}  Qxe7 {[%clk 0:01:46]} 17. Bxb7 {[%clk 0:01:46]} 1-0


[Site "https://www.chess.com"]

[Event "Titled Tuesday Blitz March 07 Late 2023"]
[White "Fernandez Garcia, Gumersindo"]
[Black "Burg, Twan"]
[WhiteFideId "24516740"]
[BlackFideId "1010697"]
[WhiteElo "2093"]
[BlackElo "2422"]
[Result "0-1"]
[Round "02"]
[TimeControl "180+2"]
[Date "2023.03.07"]
[WhiteClock "0:00:01"]
[BlackClock "0:00:17"]

1. d4 {[%clk 0:03:00]}  Nf6 {[%clk 0:02:58]} 2. c4 {[%clk 0:03:01]}  e6 {[%clk 0:02:59]} 3. Nf3 {[%clk 0:03:00]}  d5 {[%clk 0:02:57]} 4. g3 {[%clk 0:03:00]}  Be7 {[%clk 0:02:51]} 5. Bg2 {[%clk 0:03:00]}  O-O {[%clk 0:02:51]} 6. O-O {[%clk 0:03:01]}  dxc4 {[%clk 0:02:51]} 7. Qc2 {[%clk 0:03:00]}  b5 {[%clk 0:02:51]} 8. a4 {[%clk 0:03:00]}  Bb7 {[%clk 0:02:51]} 9. axb5 {[%clk 0:02:58]}  a6 {[%clk 0:02:51]} 10. bxa6 {[%clk 0:02:58]}  Nxa6 {[%clk 0:02:50]} 11. Qxc4 {[%clk 0:02:57]}  Bd5 {[%clk 0:02:49]} 12. Qc3 {[%clk 0:02:19]}  Ne4 {[%clk 0:02:49]} 13. Qe1 {[%clk 0:02:16]}  Nb4 {[%clk 0:02:48]} 14. Rxa8 {[%clk 0:02:15]}  Qxa8 {[%clk 0:02:49]} 15. Nc3 {[%clk 0:02:07]}  Nxc3 {[%clk 0:02:33]} 16. bxc3 {[%clk 0:02:04]}  Na2 {[%clk 0:02:25]} 17. Bf4 {[%clk 0:01:59]}  Rb8 {[%clk 0:02:24]} 18. Bxc7 {[%clk 0:01:41]}  Rc8 {[%clk 0:02:24]} 19. Bf4 {[%clk 0:01:33]}  Nxc3 {[%clk 0:02:24]} 20. Qd2 {[%clk 0:01:17]}  Qa6 {[%clk 0:02:12]} 21. Re1 {[%clk 0:00:54]}  Bb4 {[%clk 0:02:11]} 22. Qb2 {[%clk 0:00:53]}  Na2 {[%clk 0:01:59]} 23. Rd1 {[%clk 0:00:29]}  Nc3 {[%clk 0:01:52]} 24. Re1 {[%clk 0:00:28]}  Na2 {[%clk 0:01:52]} 25. Rd1 {[%clk 0:00:27]}  Bc3 {[%clk 0:01:52]} 26. Qb1 {[%clk 0:00:26]}  Qxe2 {[%clk 0:01:46]} 27. Ng5 {[%clk 0:00:26]}  g6 {[%clk 0:01:37]} 28. Bxd5 {[%clk 0:00:25]}  exd5 {[%clk 0:01:38]} 29. Rf1 {[%clk 0:00:19]}  Nb4 {[%clk 0:01:17]} 30. Qb3 {[%clk 0:00:13]}  Qc2 {[%clk 0:01:03]} 31. Qxc2 {[%clk 0:00:11]}  Nxc2 {[%clk 0:01:04]} 32. Rc1 {[%clk 0:00:07]}  Nxd4 {[%clk 0:01:04]} 33. Kg2 {[%clk 0:00:04]}  Rc4 {[%clk 0:01:03]} 34. Be3 {[%clk 0:00:01]}  Nf5 {[%clk 0:01:02]} 35. Bf4 {[%clk 0:00:01]}  Bb4 {[%clk 0:00:52]} 36. Rb1 {[%clk 0:00:01]}  Be7 {[%clk 0:00:38]} 37. Nf3 {[%clk 0:00:02]}  Rc8 {[%clk 0:00:37]} 38. Rb7 {[%clk 0:00:02]}  Bf6 {[%clk 0:00:37]} 39. Rd7 {[%clk 0:00:03]}  Rd8 {[%clk 0:00:36]} 40. Rxd8+ {[%clk 0:00:03]}  Bxd8 {[%clk 0:00:37]} 41. Be5 {[%clk 0:00:02]}  f6 {[%clk 0:00:37]} 42. Bb2 {[%clk 0:00:01]}  Kf7 {[%clk 0:00:38]} 43. g4 {[%clk 0:00:02]}  Nd6 {[%clk 0:00:37]} 44. Nd4 {[%clk 0:00:02]}  Nc4 {[%clk 0:00:37]} 45. Bc3 {[%clk 0:00:02]}  Bc7 {[%clk 0:00:34]} 46. h3 {[%clk 0:00:02]}  Ne5 {[%clk 0:00:34]} 47. Nb5 {[%clk 0:00:02]}  Bb8 {[%clk 0:00:33]} 48. Nd4 {[%clk 0:00:03]}  Nd3 {[%clk 0:00:33]} 49. Nc6 {[%clk 0:00:03]}  Bc7 {[%clk 0:00:29]} 50. f3 {[%clk 0:00:03]}  Nf4+ {[%clk 0:00:29]} 51. Kf2 {[%clk 0:00:02]}  Nxh3+ {[%clk 0:00:29]} 52. Ke3 {[%clk 0:00:03]}  Bb6+ {[%clk 0:00:28]} 53. Bd4 {[%clk 0:00:01]}  Bc7 {[%clk 0:00:22]} 54. Nb4 {[%clk 0:00:01]}  Nf4 {[%clk 0:00:20]} 55. Bc5 {[%clk 0:00:01]}  Be5 {[%clk 0:00:17]} 0-1


[Site "https://www.chess.com"]

[Event "Titled Tuesday Blitz March 07 Late 2023"]
[White "Remolar Gallen, Jose"]
[Black "Real_OceanStorm"]
[WhiteFideId "2215187"]
[WhiteElo "2223"]
[BlackElo "2784"]
[Result "0-1"]
[Round "02"]
[TimeControl "180+2"]
[Date "2023.03.07"]
[WhiteClock "0:00:01"]
[BlackClock "0:00:03"]

1. e4 {[%clk 0:03:00]}  c5 {[%clk 0:02:57]} 2. Nf3 {[%clk 0:03:01]}  Nc6 {[%clk 0:02:58]} 3. Bb5 {[%clk 0:03:00]}  d6 {[%clk 0:02:55]} 4. O-O {[%clk 0:02:59]}  Bd7 {[%clk 0:02:55]} 5. Re1 {[%clk 0:02:58]}  Nf6 {[%clk 0:02:55]} 6. c3 {[%clk 0:02:57]}  a6 {[%clk 0:02:55]} 7. Bf1 {[%clk 0:02:57]}  e5 {[%clk 0:02:55]} 8. h3 {[%clk 0:02:57]}  Be7 {[%clk 0:02:54]} 9. d4 {[%clk 0:02:55]}  cxd4 {[%clk 0:02:54]} 10. cxd4 {[%clk 0:02:56]}  exd4 {[%clk 0:02:54]} 11. Nxd4 {[%clk 0:02:56]}  Nxd4 {[%clk 0:02:54]} 12. Qxd4 {[%clk 0:02:56]}  Rc8 {[%clk 0:02:54]} 13. Nc3 {[%clk 0:02:55]}  O-O {[%clk 0:02:54]} 14. Bf4 {[%clk 0:02:50]}  Re8 {[%clk 0:02:44]} 15. Rad1 {[%clk 0:02:49]}  Rc6 {[%clk 0:02:43]} 16. Bc4 {[%clk 0:02:28]}  Be6 {[%clk 0:02:16]} 17. Nd5 {[%clk 0:01:55]}  b5 {[%clk 0:01:47]} 18. Bb3 {[%clk 0:01:45]}  Qc8 {[%clk 0:01:20]} 19. Nxe7+ {[%clk 0:01:38]}  Rxe7 {[%clk 0:01:19]} 20. Bxd6 {[%clk 0:01:34]}  Rd7 {[%clk 0:01:16]} 21. Bxe6 {[%clk 0:01:31]}  fxe6 {[%clk 0:01:16]} 22. e5 {[%clk 0:01:30]}  Rc4 {[%clk 0:01:15]} 23. Qb6 {[%clk 0:01:09]}  Nd5 {[%clk 0:01:14]} 24. Rxd5 {[%clk 0:00:54]}  exd5 {[%clk 0:01:08]} 25. e6 {[%clk 0:00:54]}  Rd8 {[%clk 0:00:36]} 26. e7 {[%clk 0:00:32]}  Re8 {[%clk 0:00:36]} 27. Qe3 {[%clk 0:00:31]}  Re4 {[%clk 0:00:35]} 28. Qd2 {[%clk 0:00:30]}  Qe6 {[%clk 0:00:14]} 29. Rxe4 {[%clk 0:00:29]}  Qxe4 {[%clk 0:00:15]} 30. b4 {[%clk 0:00:22]}  Qe6 {[%clk 0:00:14]} 31. Bc5 {[%clk 0:00:22]}  Qe4 {[%clk 0:00:11]} 32. g3 {[%clk 0:00:03]}  Kf7 {[%clk 0:00:05]} 33. h4 {[%clk 0:00:01]}  d4 {[%clk 0:00:02]} 34. Qg5 {[%clk 0:00:01]}  Qf3 {[%clk 0:00:02]} 35. Qe5 {[%clk 0:00:01]}  d3 {[%clk 0:00:02]} 36. Bd4 {[%clk 0:00:01]}  Rxe7 {[%clk 0:00:02]} 37. Qxg7+ {[%clk 0:00:01]}  Ke8 {[%clk 0:00:02]} 38. Qg8+ {[%clk 0:00:01]}  Kd7 {[%clk 0:00:03]} 0-1


[Site "https://www.chess.com"]

[Event "Titled Tuesday Blitz March 07 Late 2023"]
[White "Derige Kane, Yan"]
[Black "Milikow, Yoav"]
[WhiteFideId "20665431"]
[BlackFideId "2822237"]
[WhiteElo "2149"]
[BlackElo "2410"]
[Result "1-0"]
[Round "02"]
[TimeControl "180+2"]
[Date "2023.03.07"]
[WhiteClock "0:00:57"]
[BlackClock "0:00:31"]

1. d4 {[%clk 0:03:00]}  Nf6 {[%clk 0:02:58]} 2. Bg5 {[%clk 0:03:01]}  d5 {[%clk 0:02:45]} 3. e3 {[%clk 0:02:59]}  e6 {[%clk 0:02:45]} 4. Nd2 {[%clk 0:02:59]}  c5 {[%clk 0:02:45]} 5. c3 {[%clk 0:02:59]}  Nc6 {[%clk 0:02:46]} 6. f4 {[%clk 0:02:58]}  Qb6 {[%clk 0:02:44]} 7. Rb1 {[%clk 0:02:57]}  cxd4 {[%clk 0:02:43]} 8. exd4 {[%clk 0:02:58]}  Be7 {[%clk 0:02:43]} 9. Ngf3 {[%clk 0:02:58]}  h6 {[%clk 0:02:42]} 10. Bxf6 {[%clk 0:02:58]}  Bxf6 {[%clk 0:02:43]} 11. Bd3 {[%clk 0:02:58]}  Bd7 {[%clk 0:02:42]} 12. O-O {[%clk 0:02:59]}  O-O-O {[%clk 0:02:42]} 13. a4 {[%clk 0:02:57]}  a5 {[%clk 0:02:42]} 14. Kh1 {[%clk 0:02:56]}  Kb8 {[%clk 0:02:16]} 15. Ne5 {[%clk 0:02:56]}  Be8 {[%clk 0:02:16]} 16. Ndf3 {[%clk 0:02:31]}  Rc8 {[%clk 0:02:09]} 17. Qd2 {[%clk 0:02:30]}  Bd8 {[%clk 0:01:57]} 18. b4 {[%clk 0:02:05]}  axb4 {[%clk 0:01:51]} 19. Nxc6+ {[%clk 0:02:04]}  Qxc6 {[%clk 0:01:51]} 20. cxb4 {[%clk 0:02:01]}  Qc3 {[%clk 0:01:45]} 21. Qe2 {[%clk 0:02:01]}  Bf6 {[%clk 0:01:30]} 22. b5 {[%clk 0:01:44]}  Bxd4 {[%clk 0:01:26]} 23. Nxd4 {[%clk 0:01:44]}  Qxd4 {[%clk 0:01:27]} 24. a5 {[%clk 0:01:45]}  Rc3 {[%clk 0:01:23]} 25. Rfd1 {[%clk 0:01:44]}  Qxf4 {[%clk 0:01:21]} 26. b6 {[%clk 0:01:40]}  Ba4 {[%clk 0:01:19]} 27. Rf1 {[%clk 0:01:40]}  Qd4 {[%clk 0:01:18]} 28. Bb5 {[%clk 0:01:40]}  Bc2 {[%clk 0:01:15]} 29. Ra1 {[%clk 0:01:30]}  Bf5 {[%clk 0:00:55]} 30. a6 {[%clk 0:01:25]}  Qxb6 {[%clk 0:00:50]} 31. axb7 {[%clk 0:01:25]}  Kxb7 {[%clk 0:00:45]} 32. Ba6+ {[%clk 0:01:25]}  Kc7 {[%clk 0:00:45]} 33. Qe5+ {[%clk 0:01:23]}  Kd7 {[%clk 0:00:41]} 34. Qxc3 {[%clk 0:01:22]}  f6 {[%clk 0:00:41]} 35. Rfc1 {[%clk 0:01:07]}  Rb8 {[%clk 0:00:37]} 36. Qg3 {[%clk 0:01:04]}  g5 {[%clk 0:00:35]} 37. Bd3 {[%clk 0:01:01]}  Bxd3 {[%clk 0:00:34]} 38. Qxd3 {[%clk 0:01:02]}  Kd6 {[%clk 0:00:33]} 39. Rab1 {[%clk 0:01:00]}  Qd8 {[%clk 0:00:31]} 40. Qa3+ {[%clk 0:00:59]}  Ke5 {[%clk 0:00:31]} 41. Qg3+ {[%clk 0:00:57]} 1-0


[Site "https://www.chess.com"]

[Event "Titled Tuesday Blitz March 07 Late 2023"]
[White "Mahdavi, Reza"]
[Black "Kaplan, Avi Harrison"]
[WhiteFideId "12595926"]
[BlackFideId "30934559"]
[WhiteElo "2208"]
[BlackElo "1983"]
[Result "1-0"]
[Round "02"]
[TimeControl "180+2"]
[Date "2023.03.07"]
[WhiteClock "0:01:26"]
[BlackClock "0:00:05"]

1. Nf3 {[%clk 0:03:00]}  b5 {[%clk 0:02:55]} 2. g3 {[%clk 0:02:58]}  Bb7 {[%clk 0:02:56]} 3. Bg2 {[%clk 0:02:59]}  c5 {[%clk 0:02:56]} 4. Na3 {[%clk 0:02:55]}  a6 {[%clk 0:02:47]} 5. c4 {[%clk 0:02:54]}  b4 {[%clk 0:02:46]} 6. Nc2 {[%clk 0:02:54]}  d6 {[%clk 0:02:45]} 7. b3 {[%clk 0:02:55]}  Nd7 {[%clk 0:02:44]} 8. d4 {[%clk 0:02:55]}  Ngf6 {[%clk 0:02:44]} 9. O-O {[%clk 0:02:55]}  e6 {[%clk 0:02:43]} 10. Bb2 {[%clk 0:02:54]}  Be7 {[%clk 0:02:44]} 11. Qd3 {[%clk 0:02:53]}  O-O {[%clk 0:02:43]} 12. Rad1 {[%clk 0:02:52]}  Qc7 {[%clk 0:02:42]} 13. Rfe1 {[%clk 0:02:51]}  a5 {[%clk 0:02:38]} 14. e4 {[%clk 0:02:50]}  cxd4 {[%clk 0:02:27]} 15. Nfxd4 {[%clk 0:02:50]}  Nc5 {[%clk 0:02:26]} 16. Qe3 {[%clk 0:02:43]}  Nfxe4 {[%clk 0:02:19]} 17. Nb5 {[%clk 0:02:44]}  Qd7 {[%clk 0:02:11]} 18. f3 {[%clk 0:02:40]}  Bg5 {[%clk 0:01:48]} 19. Qe2 {[%clk 0:01:55]}  Nc3 {[%clk 0:01:24]} 20. Bxc3 {[%clk 0:01:55]}  bxc3 {[%clk 0:01:25]} 21. Nxd6 {[%clk 0:01:55]}  Qc7 {[%clk 0:00:53]} 22. Nxb7 {[%clk 0:01:54]}  Nxb7 {[%clk 0:00:53]} 23. f4 {[%clk 0:01:55]}  Be7 {[%clk 0:00:52]} 24. Qf3 {[%clk 0:01:51]}  Nd6 {[%clk 0:00:31]} 25. Qxc3 {[%clk 0:01:50]}  Rac8 {[%clk 0:00:31]} 26. Nd4 {[%clk 0:01:46]}  Bf6 {[%clk 0:00:29]} 27. Qd2 {[%clk 0:01:46]}  Rfd8 {[%clk 0:00:29]} 28. Nc6 {[%clk 0:01:46]}  Nxc4 {[%clk 0:00:27]} 29. Qf2 {[%clk 0:01:32]}  Rxd1 {[%clk 0:00:24]} 30. Rxd1 {[%clk 0:01:33]}  Nd6 {[%clk 0:00:19]} 31. Qc5 {[%clk 0:01:33]}  Nf5 {[%clk 0:00:17]} 32. Qxa5 {[%clk 0:01:33]}  Bd4+ {[%clk 0:00:06]} 33. Kh1 {[%clk 0:01:29]}  Qxa5 {[%clk 0:00:03]} 34. Nxa5 {[%clk 0:01:30]}  Ne3 {[%clk 0:00:03]} 35. Re1 {[%clk 0:01:26]}  Bc3 {[%clk 0:00:03]} 36. Rxe3 {[%clk 0:01:25]}  Bxa5 {[%clk 0:00:03]} 37. Bf3 {[%clk 0:01:24]}  Rc1+ {[%clk 0:00:03]} 38. Kg2 {[%clk 0:01:25]}  Rc2+ {[%clk 0:00:03]} 39. Re2 {[%clk 0:01:26]}  Rxe2+ {[%clk 0:00:03]} 40. Bxe2 {[%clk 0:01:27]}  Bb4 {[%clk 0:00:04]} 41. Kf3 {[%clk 0:01:26]}  Kf8 {[%clk 0:00:05]} 42. Ke4 {[%clk 0:01:27]}  Ke7 {[%clk 0:00:05]} 43. Kd4 {[%clk 0:01:28]}  Kd6 {[%clk 0:00:06]} 44. Kc4 {[%clk 0:01:29]}  Ba3 {[%clk 0:00:06]} 45. b4 {[%clk 0:01:29]}  f6 {[%clk 0:00:07]} 46. Bd3 {[%clk 0:01:28]}  h6 {[%clk 0:00:06]} 47. h3 {[%clk 0:01:28]}  Bc1 {[%clk 0:00:06]} 48. f5 {[%clk 0:01:28]}  exf5 {[%clk 0:00:03]} 49. Bxf5 {[%clk 0:01:28]}  Be3 {[%clk 0:00:03]} 50. a4 {[%clk 0:01:27]}  Bf2 {[%clk 0:00:04]} 51. g4 {[%clk 0:01:27]}  Kc6 {[%clk 0:00:02]} 52. a5 {[%clk 0:01:27]}  Be1 {[%clk 0:00:02]} 53. b5+ {[%clk 0:01:24]}  Kb7 {[%clk 0:00:02]} 54. Be4+ {[%clk 0:01:23]}  Kb8 {[%clk 0:00:02]} 55. a6 {[%clk 0:01:20]}  Ka7 {[%clk 0:00:03]} 56. Kd5 {[%clk 0:01:20]}  Bc3 {[%clk 0:00:03]} 57. Bf5 {[%clk 0:01:18]}  Kb6 {[%clk 0:00:03]} 58. Ke6 {[%clk 0:01:17]}  Be5 {[%clk 0:00:03]} 59. Kf7 {[%clk 0:01:17]}  g5 {[%clk 0:00:03]} 60. Kg6 {[%clk 0:01:18]}  Bd4 {[%clk 0:00:04]} 61. Kxh6 {[%clk 0:01:18]}  Be5 {[%clk 0:00:04]} 62. Kh5 {[%clk 0:01:15]}  Bd4 {[%clk 0:00:05]} 63. Bd3 {[%clk 0:01:16]}  Be5 {[%clk 0:00:05]} 64. h4 {[%clk 0:01:16]}  gxh4 {[%clk 0:00:05]} 65. Kxh4 {[%clk 0:01:17]}  Bf4 {[%clk 0:00:05]} 66. Kh5 {[%clk 0:01:18]}  Bg5 {[%clk 0:00:05]} 67. Kg6 {[%clk 0:01:19]}  Bh4 {[%clk 0:00:06]} 68. Kf5 {[%clk 0:01:20]}  Bg5 {[%clk 0:00:06]} 69. Ke6 {[%clk 0:01:21]}  Bh4 {[%clk 0:00:07]} 70. Kd7 {[%clk 0:01:22]}  Bf2 {[%clk 0:00:06]} 71. Kc8 {[%clk 0:01:23]}  Bg3 {[%clk 0:00:05]} 72. Be2 {[%clk 0:01:20]}  Bf4 {[%clk 0:00:05]} 73. Kd8 {[%clk 0:01:20]}  Be5 {[%clk 0:00:05]} 74. Ke7 {[%clk 0:01:21]}  Bd4 {[%clk 0:00:05]} 75. Ke6 {[%clk 0:01:22]}  Be5 {[%clk 0:00:06]} 76. g5 {[%clk 0:01:22]}  Bc3 {[%clk 0:00:04]} 77. gxf6 {[%clk 0:01:23]}  Bb2 {[%clk 0:00:04]} 78. f7 {[%clk 0:01:23]}  Ba3 {[%clk 0:00:04]} 79. Kd7 {[%clk 0:01:23]}  Bc5 {[%clk 0:00:03]} 80. Ke8 {[%clk 0:01:24]}  Ka7 {[%clk 0:00:03]} 81. f8=Q {[%clk 0:01:24]}  Bxf8 {[%clk 0:00:01]} 82. Kxf8 {[%clk 0:01:25]}  Kb6 {[%clk 0:00:02]} 83. Ke7 {[%clk 0:01:25]}  Ka7 {[%clk 0:00:03]} 84. Kd6 {[%clk 0:01:26]}  Kb6 {[%clk 0:00:03]} 85. Kd7 {[%clk 0:01:26]}  Ka7 {[%clk 0:00:03]} 86. Kc8 {[%clk 0:01:27]}  Ka8 {[%clk 0:00:04]} 87. Kc7 {[%clk 0:01:25]}  Ka7 {[%clk 0:00:04]} 88. b6+ {[%clk 0:01:25]}  Ka8 {[%clk 0:00:05]} 89. Bf3# {[%clk 0:01:26]} 1-0


[Site "https://www.chess.com"]